[Event "Titled Tuesday Blitz November 01 Late 2022"]
[White "Svane, Rasmus"]
[Black "Pap, Gyula"]
[WhiteFideId "4657101"]
[BlackFideId "725323"]
[WhiteElo "2674"]
[BlackElo "2519"]
[Result "1-0"]
[Round "08"]
[TimeControl "180+1"]
[Date "2022.11.01"]
[WhiteClock "0:01:37"]
[BlackClock "0:01:20"]

1. Nf3 {[%clk 0:03:00]}  d5 {[%clk 0:02:59]} 2. g3 {[%clk 0:03:01]}  Nd7 {[%clk 0:02:59]} 3. d4 {[%clk 0:03:01]}  Ngf6 {[%clk 0:02:55]} 4. Bg2 {[%clk 0:03:00]}  e6 {[%clk 0:02:56]} 5. c4 {[%clk 0:02:56]}  dxc4 {[%clk 0:02:56]} 6. O-O {[%clk 0:02:50]}  Rb8 {[%clk 0:02:55]} 7. a4 {[%clk 0:02:50]}  a6 {[%clk 0:02:50]} 8. a5 {[%clk 0:02:48]}  Bd6 {[%clk 0:02:49]} 9. Nfd2 {[%clk 0:02:43]}  b5 {[%clk 0:02:46]} 10. axb6 {[%clk 0:02:43]}  Nxb6 {[%clk 0:02:47]} 11. Qc2 {[%clk 0:02:40]}  O-O {[%clk 0:02:34]} 12. Nxc4 {[%clk 0:02:40]}  Nxc4 {[%clk 0:02:35]} 13. Qxc4 {[%clk 0:02:41]}  Bd7 {[%clk 0:02:36]} 14. Nc3 {[%clk 0:02:37]}  Bb5 {[%clk 0:02:33]} 15. Nxb5 {[%clk 0:02:37]}  axb5 {[%clk 0:02:34]} 16. Qc2 {[%clk 0:02:35]}  Qe7 {[%clk 0:02:22]} 17. Bc6 {[%clk 0:02:29]}  e5 {[%clk 0:02:22]} 18. dxe5 {[%clk 0:02:27]}  Bxe5 {[%clk 0:02:15]} 19. Be3 {[%clk 0:02:25]}  Ng4 {[%clk 0:02:10]} 20. Bc5 {[%clk 0:02:19]}  Bd6 {[%clk 0:02:10]} 21. Bxd6 {[%clk 0:02:15]}  cxd6 {[%clk 0:02:00]} 22. Bf3 {[%clk 0:02:03]}  Ne5 {[%clk 0:01:57]} 23. Bd5 {[%clk 0:02:03]}  Rfc8 {[%clk 0:01:51]} 24. Qe4 {[%clk 0:02:03]}  Ng6 {[%clk 0:01:45]} 25. Rfd1 {[%clk 0:01:55]}  Qf6 {[%clk 0:01:41]} 26. Ra7 {[%clk 0:01:52]}  Rf8 {[%clk 0:01:37]} 27. Rc1 {[%clk 0:01:43]}  Rbe8 {[%clk 0:01:20]} 28. Rxf7 {[%clk 0:01:37]} 1-0


[Site "https://www.chess.com"]

[Event "Titled Tuesday Blitz November 01 Late 2022"]
[White "Voigt, Martin"]
[Black "chess50years"]
[WhiteFideId "4607228"]
[WhiteElo "2356"]
[BlackElo "2079"]
[Result "0-1"]
[Round "08"]
[TimeControl "180+1"]
[Date "2022.11.02"]
[WhiteClock "0:00:24"]
[BlackClock "0:00:09"]

1. e4 {[%clk 0:03:00]}  c5 {[%clk 0:02:57]} 2. Nf3 {[%clk 0:03:00]}  e6 {[%clk 0:02:57]} 3. Nc3 {[%clk 0:02:59]}  a6 {[%clk 0:02:55]} 4. g3 {[%clk 0:02:58]}  Nc6 {[%clk 0:02:53]} 5. Bg2 {[%clk 0:02:58]}  d6 {[%clk 0:02:45]} 6. O-O {[%clk 0:02:57]}  Nf6 {[%clk 0:02:45]} 7. d4 {[%clk 0:02:56]}  cxd4 {[%clk 0:02:44]} 8. Nxd4 {[%clk 0:02:57]}  Bd7 {[%clk 0:02:43]} 9. Re1 {[%clk 0:02:57]}  Be7 {[%clk 0:02:41]} 10. Be3 {[%clk 0:02:49]}  Rc8 {[%clk 0:02:38]} 11. a4 {[%clk 0:02:48]}  Ne5 {[%clk 0:02:24]} 12. h3 {[%clk 0:02:42]}  Nc4 {[%clk 0:02:22]} 13. Bc1 {[%clk 0:02:41]}  O-O {[%clk 0:02:17]} 14. b3 {[%clk 0:02:28]}  Ne5 {[%clk 0:02:09]} 15. Bb2 {[%clk 0:02:27]}  Qa5 {[%clk 0:01:52]} 16. Nce2 {[%clk 0:02:22]}  Nc6 {[%clk 0:01:40]} 17. c4 {[%clk 0:02:09]}  Nxd4 {[%clk 0:01:34]} 18. Nxd4 {[%clk 0:02:08]}  e5 {[%clk 0:01:30]} 19. Nf5 {[%clk 0:02:03]}  Bxf5 {[%clk 0:01:29]} 20. exf5 {[%clk 0:02:03]}  Qc7 {[%clk 0:01:17]} 21. g4 {[%clk 0:01:57]}  h6 {[%clk 0:01:16]} 22. Qd2 {[%clk 0:01:47]}  Nh7 {[%clk 0:01:15]} 23. Rad1 {[%clk 0:01:46]}  a5 {[%clk 0:01:08]} 24. Bd5 {[%clk 0:01:39]}  b6 {[%clk 0:01:04]} 25. Kg2 {[%clk 0:01:39]}  Nf6 {[%clk 0:00:54]} 26. f4 {[%clk 0:01:36]}  Nxd5 {[%clk 0:00:50]} 27. Qxd5 {[%clk 0:01:25]}  exf4 {[%clk 0:00:46]} 28. Re4 {[%clk 0:01:25]}  Rfd8 {[%clk 0:00:37]} 29. Rxf4 {[%clk 0:01:23]}  Bg5 {[%clk 0:00:36]} 30. Re4 {[%clk 0:01:23]}  Qc5 {[%clk 0:00:32]} 31. Qxc5 {[%clk 0:01:11]}  dxc5 {[%clk 0:00:29]} 32. Rxd8+ {[%clk 0:01:11]}  Rxd8 {[%clk 0:00:29]} 33. Re2 {[%clk 0:01:12]}  Rd3 {[%clk 0:00:26]} 34. Be5 {[%clk 0:00:55]}  Rxb3 {[%clk 0:00:25]} 35. Bc7 {[%clk 0:00:55]}  Rb4 {[%clk 0:00:24]} 36. Re8+ {[%clk 0:00:45]}  Kh7 {[%clk 0:00:24]} 37. Rb8 {[%clk 0:00:45]}  Rxa4 {[%clk 0:00:21]} 38. Rxb6 {[%clk 0:00:40]}  Rxc4 {[%clk 0:00:21]} 39. Rb7 {[%clk 0:00:38]}  Rc2+ {[%clk 0:00:20]} 40. Kf3 {[%clk 0:00:38]}  a4 {[%clk 0:00:20]} 41. Be5 {[%clk 0:00:30]}  f6 {[%clk 0:00:15]} 42. Bd6 {[%clk 0:00:30]}  c4 {[%clk 0:00:15]} 43. Bf8 {[%clk 0:00:29]}  Kg8 {[%clk 0:00:12]} 44. Bxg7 {[%clk 0:00:25]}  a3 {[%clk 0:00:12]} 45. h4 {[%clk 0:00:25]}  a2 {[%clk 0:00:10]} 46. Ra7 {[%clk 0:00:24]}  a1=Q {[%clk 0:00:09]} 47. Ra5 {[%clk 0:00:24]}  Kxg7 {[%clk 0:00:09]} 0-1


[Site "https://www.chess.com"]

[Event "Titled Tuesday Blitz November 01 Late 2022"]
[White "Winkels, Marcel"]
[Black "Silva, Caio Henrique Angelico"]
[WhiteFideId "1003887"]
[BlackFideId "22777210"]
[WhiteElo "1900"]
[BlackElo "1990"]
[Result "0-1"]
[Round "08"]
[TimeControl "180+1"]
[Date "2022.11.02"]
[WhiteClock "0:00:46"]
[BlackClock "0:00:59"]

1. e4 {[%clk 0:03:00]}  c6 {[%clk 0:02:59]} 2. d4 {[%clk 0:02:59]}  d5 {[%clk 0:03:00]} 3. exd5 {[%clk 0:02:59]}  cxd5 {[%clk 0:03:01]} 4. c4 {[%clk 0:02:59]}  Nf6 {[%clk 0:03:01]} 5. Nc3 {[%clk 0:03:00]}  g6 {[%clk 0:03:01]} 6. cxd5 {[%clk 0:02:58]}  Bg7 {[%clk 0:02:59]} 7. Bb5+ {[%clk 0:02:58]}  Bd7 {[%clk 0:02:58]} 8. Qb3 {[%clk 0:02:55]}  O-O {[%clk 0:02:58]} 9. Nge2 {[%clk 0:02:55]}  a6 {[%clk 0:02:49]} 10. Bxd7 {[%clk 0:02:53]}  Qxd7 {[%clk 0:02:46]} 11. O-O {[%clk 0:02:50]}  Rd8 {[%clk 0:02:37]} 12. Nf4 {[%clk 0:02:40]}  g5 {[%clk 0:02:26]} 13. Nd3 {[%clk 0:02:39]}  Nxd5 {[%clk 0:02:23]} 14. Bxg5 {[%clk 0:02:33]}  Nc6 {[%clk 0:02:20]} 15. Nc5 {[%clk 0:02:30]}  Qf5 {[%clk 0:02:08]} 16. Nxd5 {[%clk 0:02:25]}  Qxd5 {[%clk 0:01:59]} 17. Rad1 {[%clk 0:01:54]}  Qxg5 {[%clk 0:01:50]} 18. Qxb7 {[%clk 0:01:53]}  Nxd4 {[%clk 0:01:44]} 19. Ne4 {[%clk 0:01:41]}  Nf3+ {[%clk 0:01:23]} 20. Kh1 {[%clk 0:01:40]}  Qf4 {[%clk 0:01:22]} 21. Rxd8+ {[%clk 0:01:09]}  Rxd8 {[%clk 0:01:23]} 22. gxf3 {[%clk 0:01:08]}  Qxf3+ {[%clk 0:01:24]} 23. Kg1 {[%clk 0:01:08]}  Rd4 {[%clk 0:01:13]} 24. Qc8+ {[%clk 0:01:00]}  Bf8 {[%clk 0:01:06]} 25. Ng3 {[%clk 0:00:55]}  h5 {[%clk 0:01:03]} 26. Qc5 {[%clk 0:00:48]}  Rg4 {[%clk 0:00:59]} 27. Qxh5 {[%clk 0:00:46]}  Rxg3+ {[%clk 0:00:59]} 0-1


[Site "https://www.chess.com"]

[Event "Titled Tuesday Blitz November 01 Late 2022"]
[White "Winterberg, Lukas"]
[Black "Sokolovsky, Yahli"]
[WhiteFideId "24622702"]
[BlackFideId "2820242"]
[WhiteElo "2349"]
[BlackElo "2316"]
[Result "0-1"]
[Round "08"]
[TimeControl "180+1"]
[Date "2022.11.02"]
[WhiteClock "0:00:24"]
[BlackClock "0:00:18"]

1. d4 {[%clk 0:03:00]}  d6 {[%clk 0:03:00]} 2. Nf3 {[%clk 0:03:01]}  g6 {[%clk 0:03:00]} 3. c4 {[%clk 0:03:01]}  Bg7 {[%clk 0:03:00]} 4. Nc3 {[%clk 0:03:01]}  Nf6 {[%clk 0:03:00]} 5. e4 {[%clk 0:03:01]}  O-O {[%clk 0:03:00]} 6. Be2 {[%clk 0:03:02]}  Bg4 {[%clk 0:03:00]} 7. O-O {[%clk 0:03:01]}  Bxf3 {[%clk 0:02:54]} 8. Bxf3 {[%clk 0:02:57]}  e5 {[%clk 0:02:55]} 9. Be3 {[%clk 0:02:50]}  Nc6 {[%clk 0:02:55]} 10. d5 {[%clk 0:02:49]}  Ne7 {[%clk 0:02:56]} 11. Rc1 {[%clk 0:02:46]}  Nd7 {[%clk 0:02:55]} 12. Be2 {[%clk 0:02:46]}  f5 {[%clk 0:02:55]} 13. f3 {[%clk 0:02:47]}  f4 {[%clk 0:02:55]} 14. Bf2 {[%clk 0:02:47]}  g5 {[%clk 0:02:56]} 15. b4 {[%clk 0:02:47]}  a5 {[%clk 0:02:56]} 16. a3 {[%clk 0:02:46]}  axb4 {[%clk 0:02:57]} 17. axb4 {[%clk 0:02:46]}  h5 {[%clk 0:02:56]} 18. c5 {[%clk 0:02:47]}  Nf6 {[%clk 0:02:56]} 19. cxd6 {[%clk 0:02:46]}  cxd6 {[%clk 0:02:57]} 20. Nb5 {[%clk 0:02:46]}  Ne8 {[%clk 0:02:51]} 21. Qc2 {[%clk 0:02:43]}  Qd7 {[%clk 0:02:50]} 22. h3 {[%clk 0:02:37]}  g4 {[%clk 0:02:37]} 23. fxg4 {[%clk 0:02:35]}  hxg4 {[%clk 0:02:38]} 24. hxg4 {[%clk 0:02:35]}  Kf7 {[%clk 0:02:32]} 25. Ra1 {[%clk 0:02:33]}  Rc8 {[%clk 0:02:32]} 26. Qb3 {[%clk 0:02:26]}  Rh8 {[%clk 0:02:31]} 27. Rfc1 {[%clk 0:02:25]}  Ng6 {[%clk 0:02:06]} 28. g5 {[%clk 0:02:06]}  Rxc1+ {[%clk 0:01:52]} 29. Rxc1 {[%clk 0:02:07]}  Qe7 {[%clk 0:01:53]} 30. Bg4 {[%clk 0:02:01]}  Nf8 {[%clk 0:01:43]} 31. Qf3 {[%clk 0:01:30]}  Qxg5 {[%clk 0:01:41]} 32. Nc7 {[%clk 0:01:28]}  Nf6 {[%clk 0:01:28]} 33. Be6+ {[%clk 0:01:27]}  Ke7 {[%clk 0:01:17]} 34. Bf5 {[%clk 0:01:21]}  Nh5 {[%clk 0:01:13]} 35. Ne6 {[%clk 0:01:19]}  Nxe6 {[%clk 0:00:41]} 36. dxe6 {[%clk 0:01:20]}  Ng3 {[%clk 0:00:27]} 37. Rc7+ {[%clk 0:01:15]}  Kd8 {[%clk 0:00:27]} 38. Rd7+ {[%clk 0:00:50]}  Ke8 {[%clk 0:00:27]} 39. Bh3 {[%clk 0:00:36]}  Bf6 {[%clk 0:00:20]} 40. Qg4 {[%clk 0:00:24]}  Qxg4 {[%clk 0:00:18]} 0-1


[Site "https://www.chess.com"]

[Event "Titled Tuesday Blitz November 01 Late 2022"]
[White "Xiong, Jeffery"]
[Black "Vusatiuk, Vladimir"]
[WhiteFideId "2047640"]
[BlackFideId "14118610"]
[WhiteElo "2725"]
[BlackElo "2208"]
[Result "0-1"]
[Round "08"]
[TimeControl "180+1"]
[Date "2022.11.01"]
[WhiteClock "0:00:03"]
[BlackClock "0:00:16"]

1. d4 {[%clk 0:03:00]}  Nf6 {[%clk 0:02:57]} 2. c4 {[%clk 0:03:01]}  c6 {[%clk 0:02:57]} 3. Bf4 {[%clk 0:02:59]}  Qb6 {[%clk 0:02:53]} 4. Qd2 {[%clk 0:02:48]}  Ne4 {[%clk 0:02:51]} 5. Qc2 {[%clk 0:02:48]}  d5 {[%clk 0:02:47]} 6. e3 {[%clk 0:02:41]}  Bf5 {[%clk 0:02:40]} 7. Bd3 {[%clk 0:02:07]}  dxc4 {[%clk 0:02:33]} 8. Bxe4 {[%clk 0:02:07]}  Bxe4 {[%clk 0:02:31]} 9. Qxe4 {[%clk 0:02:08]}  Qxb2 {[%clk 0:02:31]} 10. Ne2 {[%clk 0:02:09]}  Qxa1 {[%clk 0:02:24]} 11. Qc2 {[%clk 0:02:09]}  Na6 {[%clk 0:02:17]} 12. O-O {[%clk 0:02:02]}  Nb4 {[%clk 0:02:14]} 13. Qxc4 {[%clk 0:02:00]}  e6 {[%clk 0:02:12]} 14. a3 {[%clk 0:01:46]}  Qa2 {[%clk 0:02:06]} 15. Qxa2 {[%clk 0:01:42]}  Nxa2 {[%clk 0:02:06]} 16. Rd1 {[%clk 0:01:42]}  a5 {[%clk 0:02:01]} 17. Rd2 {[%clk 0:01:42]}  Nb4 {[%clk 0:02:01]} 18. axb4 {[%clk 0:01:43]}  axb4 {[%clk 0:02:02]} 19. Nc1 {[%clk 0:01:27]}  Be7 {[%clk 0:01:57]} 20. Rc2 {[%clk 0:01:24]}  g5 {[%clk 0:01:54]} 21. Bg3 {[%clk 0:01:18]}  Kd7 {[%clk 0:01:50]} 22. Nd2 {[%clk 0:01:14]}  Ra3 {[%clk 0:01:46]} 23. Kf1 {[%clk 0:01:13]}  Rha8 {[%clk 0:01:44]} 24. Ke2 {[%clk 0:01:11]}  h5 {[%clk 0:01:41]} 25. Nc4 {[%clk 0:01:10]}  h4 {[%clk 0:01:36]} 26. Be5 {[%clk 0:00:44]}  f6 {[%clk 0:01:34]} 27. Nb6+ {[%clk 0:00:45]}  Kd8 {[%clk 0:01:33]} 28. Bxf6 {[%clk 0:00:45]}  Bxf6 {[%clk 0:01:31]} 29. Nxa8 {[%clk 0:00:46]}  Rxa8 {[%clk 0:01:32]} 30. Rb2 {[%clk 0:00:47]}  c5 {[%clk 0:01:30]} 31. Nd3 {[%clk 0:00:37]}  b6 {[%clk 0:01:29]} 32. Kf3 {[%clk 0:00:38]}  Ra3 {[%clk 0:01:25]} 33. Ke4 {[%clk 0:00:36]}  b3 {[%clk 0:01:12]} 34. Rb1 {[%clk 0:00:07]}  c4 {[%clk 0:01:05]} 35. Nc1 {[%clk 0:00:08]}  b5 {[%clk 0:01:03]} 36. g4 {[%clk 0:00:08]}  b4 {[%clk 0:00:59]} 37. f4 {[%clk 0:00:09]}  Ra2 {[%clk 0:00:58]} 38. Nxb3 {[%clk 0:00:07]}  cxb3 {[%clk 0:00:57]} 39. Rxb3 {[%clk 0:00:08]}  Rxh2 {[%clk 0:00:54]} 40. Rxb4 {[%clk 0:00:08]}  h3 {[%clk 0:00:52]} 41. Rb8+ {[%clk 0:00:02]}  Kc7 {[%clk 0:00:46]} 42. Rf8 {[%clk 0:00:03]}  Be7 {[%clk 0:00:44]} 43. Rf7 {[%clk 0:00:03]}  Kd6 {[%clk 0:00:42]} 44. Rh7 {[%clk 0:00:04]}  Rh1 {[%clk 0:00:36]} 45. f5 {[%clk 0:00:04]}  exf5+ {[%clk 0:00:30]} 46. gxf5 {[%clk 0:00:05]}  g4 {[%clk 0:00:27]} 47. Kf4 {[%clk 0:00:05]}  Rg1 {[%clk 0:00:26]} 48. e4 {[%clk 0:00:02]}  Bd8 {[%clk 0:00:16]} 49. Rxh3 {[%clk 0:00:03]}  gxh3 {[%clk 0:00:16]} 0-1


[Site "https://www.chess.com"]

[Event "Titled Tuesday Blitz November 01 Late 2022"]
[White "Young, Ryan"]
[Black "Ambartsumova, Karina"]
[WhiteFideId "2049945"]
[BlackFideId "4166299"]
[WhiteElo "2407"]
[BlackElo "2299"]
[Result "0-1"]
[Round "08"]
[TimeControl "180+1"]
[Date "2022.11.02"]
[WhiteClock "0:00:02"]
[BlackClock "0:00:45"]

1. e4 {[%clk 0:02:59]}  e5 {[%clk 0:02:49]} 2. Nf3 {[%clk 0:02:58]}  Nc6 {[%clk 0:02:47]} 3. Bc4 {[%clk 0:02:55]}  Nf6 {[%clk 0:02:45]} 4. d3 {[%clk 0:02:55]}  h6 {[%clk 0:02:46]} 5. c3 {[%clk 0:02:55]}  g5 {[%clk 0:02:43]} 6. Bb3 {[%clk 0:02:50]}  Bg7 {[%clk 0:02:40]} 7. Nbd2 {[%clk 0:02:49]}  d6 {[%clk 0:02:38]} 8. Nc4 {[%clk 0:02:49]}  Be6 {[%clk 0:02:21]} 9. Ne3 {[%clk 0:02:49]}  Qd7 {[%clk 0:02:21]} 10. Bxe6 {[%clk 0:02:48]}  fxe6 {[%clk 0:02:20]} 11. Bd2 {[%clk 0:02:43]}  Ne7 {[%clk 0:02:11]} 12. Qb3 {[%clk 0:02:40]}  O-O-O {[%clk 0:02:10]} 13. O-O-O {[%clk 0:02:40]}  Ng6 {[%clk 0:02:08]} 14. g3 {[%clk 0:02:39]}  g4 {[%clk 0:02:05]} 15. Ne1 {[%clk 0:02:35]}  h5 {[%clk 0:02:05]} 16. Qa3 {[%clk 0:02:13]}  Kb8 {[%clk 0:02:03]} 17. N3c2 {[%clk 0:02:11]}  d5 {[%clk 0:01:56]} 18. Be3 {[%clk 0:01:59]}  b6 {[%clk 0:01:46]} 19. Ng2 {[%clk 0:01:33]}  Qb5 {[%clk 0:01:32]} 20. Bg5 {[%clk 0:01:13]}  Rd7 {[%clk 0:01:28]} 21. Nge3 {[%clk 0:01:05]}  Nh7 {[%clk 0:01:21]} 22. Bh4 {[%clk 0:01:00]}  Bh6 {[%clk 0:01:13]} 23. Kb1 {[%clk 0:00:59]}  Rf8 {[%clk 0:01:10]} 24. Rhf1 {[%clk 0:00:35]}  Nxh4 {[%clk 0:00:59]} 25. gxh4 {[%clk 0:00:35]}  dxe4 {[%clk 0:01:00]} 26. dxe4 {[%clk 0:00:28]}  Rxd1+ {[%clk 0:00:58]} 27. Rxd1 {[%clk 0:00:28]}  Rxf2 {[%clk 0:00:57]} 28. Qe7 {[%clk 0:00:27]}  Bxe3 {[%clk 0:00:53]} 29. Qxh7 {[%clk 0:00:21]}  Qe2 {[%clk 0:00:48]} 30. Rd8+ {[%clk 0:00:10]}  Kb7 {[%clk 0:00:47]} 31. Nxe3 {[%clk 0:00:02]}  Qxb2# {[%clk 0:00:45]} 0-1


[Site "https://www.chess.com"]

[Event "Titled Tuesday Blitz November 01 Late 2022"]
[White "Zierk, Steven"]
[Black "Melkumyan, Hrant"]
[WhiteFideId "2034255"]
[BlackFideId "13302485"]
[WhiteElo "2494"]
[BlackElo "2604"]
[Result "0-1"]
[Round "08"]
[TimeControl "180+1"]
[Date "2022.11.01"]
[WhiteClock "0:00:01"]
[BlackClock "0:00:17"]

1. e4 {[%clk 0:03:00]}  c5 {[%clk 0:02:59]} 2. Nf3 {[%clk 0:03:00]}  Nc6 {[%clk 0:03:00]} 3. Bb5 {[%clk 0:03:00]}  g6 {[%clk 0:03:00]} 4. O-O {[%clk 0:03:00]}  Bg7 {[%clk 0:03:00]} 5. c3 {[%clk 0:03:00]}  a6 {[%clk 0:03:00]} 6. Ba4 {[%clk 0:02:58]}  b5 {[%clk 0:03:00]} 7. Bc2 {[%clk 0:02:58]}  d6 {[%clk 0:03:01]} 8. d4 {[%clk 0:02:57]}  cxd4 {[%clk 0:03:01]} 9. cxd4 {[%clk 0:02:58]}  Bg4 {[%clk 0:03:01]} 10. Be3 {[%clk 0:02:42]}  Bxf3 {[%clk 0:02:58]} 11. gxf3 {[%clk 0:02:41]}  Rc8 {[%clk 0:02:59]} 12. Nc3 {[%clk 0:02:38]}  Nf6 {[%clk 0:02:57]} 13. d5 {[%clk 0:02:33]}  Ne5 {[%clk 0:02:56]} 14. f4 {[%clk 0:02:22]}  Nc4 {[%clk 0:02:55]} 15. Bd4 {[%clk 0:02:22]}  Nxb2 {[%clk 0:02:51]} 16. Qe2 {[%clk 0:02:12]}  Nc4 {[%clk 0:02:48]} 17. a4 {[%clk 0:01:58]}  O-O {[%clk 0:02:45]} 18. axb5 {[%clk 0:01:56]}  axb5 {[%clk 0:02:35]} 19. Nxb5 {[%clk 0:01:54]}  Qd7 {[%clk 0:02:31]} 20. Rfb1 {[%clk 0:01:45]}  Nh5 {[%clk 0:02:23]} 21. f5 {[%clk 0:00:54]}  Bxd4 {[%clk 0:02:11]} 22. Nxd4 {[%clk 0:00:55]}  Ne5 {[%clk 0:02:12]} 23. Ba4 {[%clk 0:00:50]}  Qa7 {[%clk 0:02:06]} 24. Nc6 {[%clk 0:00:44]}  Nxc6 {[%clk 0:02:06]} 25. dxc6 {[%clk 0:00:44]}  Qd4 {[%clk 0:02:02]} 26. Qe3 {[%clk 0:00:35]}  Qe5 {[%clk 0:01:51]} 27. Ra3 {[%clk 0:00:27]}  Nf6 {[%clk 0:01:51]} 28. Re1 {[%clk 0:00:18]}  Ng4 {[%clk 0:01:36]} 29. Qg3 {[%clk 0:00:17]}  Qc5 {[%clk 0:01:37]} 30. Rc3 {[%clk 0:00:16]}  Qd4 {[%clk 0:01:32]} 31. Bb3 {[%clk 0:00:15]}  Nxf2 {[%clk 0:01:20]} 32. Qe3 {[%clk 0:00:15]}  Qxe3 {[%clk 0:01:16]} 33. Rexe3 {[%clk 0:00:16]}  Ng4 {[%clk 0:01:17]} 34. Rg3 {[%clk 0:00:16]}  Ne5 {[%clk 0:01:15]} 35. c7 {[%clk 0:00:16]}  Kg7 {[%clk 0:01:13]} 36. Bd5 {[%clk 0:00:16]}  Nd7 {[%clk 0:01:05]} 37. fxg6 {[%clk 0:00:12]}  hxg6 {[%clk 0:01:04]} 38. Bb7 {[%clk 0:00:12]}  Nc5 {[%clk 0:01:04]} 39. Bxc8 {[%clk 0:00:12]}  Rxc8 {[%clk 0:01:05]} 40. e5 {[%clk 0:00:12]}  Ne4 {[%clk 0:01:04]} 41. exd6 {[%clk 0:00:13]}  exd6 {[%clk 0:01:03]} 42. Rge3 {[%clk 0:00:12]}  Nxc3 {[%clk 0:01:03]} 43. Rxc3 {[%clk 0:00:13]}  Kf8 {[%clk 0:01:03]} 44. Kf2 {[%clk 0:00:07]}  Ke7 {[%clk 0:01:03]} 45. h4 {[%clk 0:00:06]}  d5 {[%clk 0:00:58]} 46. Rc6 {[%clk 0:00:03]}  Kd7 {[%clk 0:00:59]} 47. Rf6 {[%clk 0:00:03]}  Rf8 {[%clk 0:00:48]} 48. h5 {[%clk 0:00:03]}  gxh5 {[%clk 0:00:47]} 49. Rf5 {[%clk 0:00:04]}  Kd6 {[%clk 0:00:36]} 50. Ke3 {[%clk 0:00:04]}  Rc8 {[%clk 0:00:26]} 51. Rxf7 {[%clk 0:00:02]}  Rxc7 {[%clk 0:00:27]} 52. Rf6+ {[%clk 0:00:02]}  Kc5 {[%clk 0:00:27]} 53. Rh6 {[%clk 0:00:01]}  Re7+ {[%clk 0:00:26]} 54. Kd3 {[%clk 0:00:02]}  Re5 {[%clk 0:00:26]} 55. Rh8 {[%clk 0:00:02]}  Rg5 {[%clk 0:00:24]} 56. Rc8+ {[%clk 0:00:02]}  Kd6 {[%clk 0:00:24]} 57. Rh8 {[%clk 0:00:03]}  Ke5 {[%clk 0:00:25]} 58. Re8+ {[%clk 0:00:03]}  Kf4 {[%clk 0:00:25]} 59. Rf8+ {[%clk 0:00:02]}  Kg3 {[%clk 0:00:25]} 60. Ke3 {[%clk 0:00:01]}  h4 {[%clk 0:00:25]} 61. Rf3+ {[%clk 0:00:01]}  Kg4 {[%clk 0:00:24]} 62. Rf4+ {[%clk 0:00:01]}  Kh5 {[%clk 0:00:24]} 63. Rf8 {[%clk 0:00:01]}  Kg6 {[%clk 0:00:18]} 64. Kf4 {[%clk 0:00:01]}  Rh5 {[%clk 0:00:16]} 65. Rg8+ {[%clk 0:00:01]}  Kf7 {[%clk 0:00:17]} 66. Rd8 {[%clk 0:00:01]}  Ke7 {[%clk 0:00:17]} 0-1


[Site "https://www.chess.com"]

[Event "Titled Tuesday Blitz November 01 Late 2022"]
[White "Golubova, Anna"]
[Black "Aizpurua, Patrick Emilio"]
[WhiteFideId "24173606"]
[BlackFideId "6600522"]
[WhiteElo "2047"]
[BlackElo "2378"]
[Result "0-1"]
[Round "09"]
[TimeControl "180+1"]
[Date "2022.11.02"]
[WhiteClock "0:00:01"]
[BlackClock "0:00:16"]

1. Nf3 {[%clk 0:03:00]}  Nf6 {[%clk 0:03:00]} 2. g3 {[%clk 0:02:59]}  d5 {[%clk 0:03:00]} 3. Bg2 {[%clk 0:03:00]}  e6 {[%clk 0:03:01]} 4. O-O {[%clk 0:03:01]}  Be7 {[%clk 0:03:02]} 5. d3 {[%clk 0:03:01]}  O-O {[%clk 0:03:02]} 6. Nbd2 {[%clk 0:03:01]}  b6 {[%clk 0:03:01]} 7. e4 {[%clk 0:03:01]}  Bb7 {[%clk 0:03:01]} 8. Qe2 {[%clk 0:03:00]}  c5 {[%clk 0:03:00]} 9. c3 {[%clk 0:02:40]}  Nc6 {[%clk 0:03:00]} 10. e5 {[%clk 0:02:37]}  Nd7 {[%clk 0:02:59]} 11. d4 {[%clk 0:02:38]}  a5 {[%clk 0:02:56]} 12. a4 {[%clk 0:02:23]}  Ba6 {[%clk 0:02:54]} 13. c4 {[%clk 0:02:15]}  cxd4 {[%clk 0:02:44]} 14. b3 {[%clk 0:02:05]}  Nc5 {[%clk 0:02:39]} 15. Bb2 {[%clk 0:02:01]}  dxc4 {[%clk 0:02:32]} 16. bxc4 {[%clk 0:01:57]}  Rc8 {[%clk 0:02:22]} 17. Rfd1 {[%clk 0:01:55]}  d3 {[%clk 0:02:11]} 18. Qe3 {[%clk 0:01:52]}  Nb4 {[%clk 0:02:11]} 19. Nd4 {[%clk 0:01:38]}  Qd7 {[%clk 0:01:35]} 20. Bc3 {[%clk 0:01:28]}  Rfd8 {[%clk 0:01:23]} 21. Ne4 {[%clk 0:01:19]}  Nxe4 {[%clk 0:01:20]} 22. Bxe4 {[%clk 0:01:17]}  Rxc4 {[%clk 0:01:12]} 23. Bxb4 {[%clk 0:01:10]}  Rxd4 {[%clk 0:01:00]} 24. Bxe7 {[%clk 0:01:06]}  Qxe7 {[%clk 0:01:01]} 25. Rac1 {[%clk 0:01:01]}  g6 {[%clk 0:00:55]} 26. Rc6 {[%clk 0:00:51]}  Bb7 {[%clk 0:00:50]} 27. Rd6 {[%clk 0:00:34]}  Rxe4 {[%clk 0:00:44]} 28. Qxb6 {[%clk 0:00:33]}  Rxd6 {[%clk 0:00:41]} 29. exd6 {[%clk 0:00:32]}  Qd7 {[%clk 0:00:40]} 30. Rb1 {[%clk 0:00:30]}  d2 {[%clk 0:00:29]} 31. Qxa5 {[%clk 0:00:29]}  Qc6 {[%clk 0:00:24]} 32. f3 {[%clk 0:00:16]}  Qc1+ {[%clk 0:00:22]} 33. Kf2 {[%clk 0:00:12]}  Qxb1 {[%clk 0:00:20]} 34. Qxd2 {[%clk 0:00:08]}  Qb6+ {[%clk 0:00:19]} 35. Kg2 {[%clk 0:00:08]}  Rd4 {[%clk 0:00:19]} 36. Qc3 {[%clk 0:00:05]}  Qxd6 {[%clk 0:00:18]} 37. a5 {[%clk 0:00:06]}  Rd3 {[%clk 0:00:18]} 38. Qc4 {[%clk 0:00:05]}  Bxf3+ {[%clk 0:00:18]} 39. Kh3 {[%clk 0:00:04]}  Qd4 {[%clk 0:00:16]} 40. Qc8+ {[%clk 0:00:04]}  Kg7 {[%clk 0:00:16]} 41. g4 {[%clk 0:00:01]}  Qxg4# {[%clk 0:00:16]} 0-1


[Site "https://www.chess.com"]